bitfinex/quotes_SOLUSD_20240816
["timestamp","ask_amount","ask_price","bid_price","bid_amount"]
[1723808577196,6.98,143.27,143.23,26.9817]
[1723808578793,26.9804,143.26,143.22,6.0233]
[1723808579167,6.9804,143.26,143.22,6.0233]
[1723808579586,6.9804,143.26,143.22,13.0054]
[1723808579804,6.9804,143.26,143.22,6.0233]
[1723808581581,6.9804,143.26,143.22,26.0233]
[1723808581789,6.9804,143.26,143.22,6.0233]
[1723808582294,6.9804,143.26,143.22,13.0055]
[1723808582718,6.9796,143.28,143.24,26.9812]
[1723808583404,10.59549,143.31,143.24,26.9812]
[1723808583405,6.979,143.29,143.24,26.9812]
[1723808583582,6.9784,143.3,143.25,17.4517]
[1723808583778,6.9788,143.29,143.25,24.4321]
[1723808583989,6.9785,143.3,143.26,6.9801]
[1723808584194,6.9785,143.3,143.26,26.9801]
[1723808584395,6.978,143.31,143.26,26.9801]
[1723808585617,6.9784,143.3,143.26,6.9801]
[1723808585818,6.9784,143.3,143.25,24.4323]
[1723808587095,6.9789,143.29,143.25,24.4323]
[1723808587493,6.9789,143.29,143.25,44.4323]
[1723808587720,6.9798,143.27,143.23,6.9814]
[1723808589418,6.9798,143.27,143.22,50.4601]
[1723808591105,6.9798,143.27,143.23,6.9817]
[1723808593032,6.9794,143.28,143.23,6.9817]
[1723808595534,6.9804,143.26,143.22,30.4602]
[1723808595738,10.47,143.29,143.22,17.4547]
[1723808595739,6.9808,143.25,143.22,17.4547]
[1723808595949,6.9804,143.26,143.22,17.4547]
[1723808596312,6.9804,143.26,143.22,24.4369]
[1723808596514,6.9804,143.26,143.18,6.9045449]
[1723808596515,10.47,143.25,143.18,44.3639449]
[1723808596762,10.47,143.25,143.2,6.9831]
[1723808596763,6.9813,143.24,143.2,6.9831]
[1723808597468,6.9819,143.23,143.19,6.9836]
[1723808598568,6.9819,143.23,143.18,31.3480449]
[1723808598935,6.9819,143.23,143.19,6.9836]
[1723808601950,6.9814,143.24,143.19,6.9836]
[1723808603244,6.9817,143.23,143.19,6.9836]
[1723808607451,6.9814,143.24,143.19,6.9836]
[1723808608071,6.9814,143.24,143.2,6.9831]
[1723808614149,6.9809,143.25,143.21,6.9826]
[1723808614447,6.9809,143.25,143.22,20.0]
[1723808614965,6.9809,143.25,143.21,6.9826]
[1723808615959,6.9809,143.25,143.2,44.4408]
[1723808616466,6.9813,143.24,143.2,44.4408]
[1723808618784,6.9809,143.25,143.22,20.0]
[1723808619866,6.9809,143.25,143.21,6.9826]
[1723808620663,6.9809,143.25,143.2,24.4407]
[1723808622890,10.47,143.27,143.18,17.3745449]
[1723808622891,6.9818,143.23,143.18,7.8291449]
[1723808624594,16.4712,143.25,143.18,0.8453449]
[1723808624789,65.50196,143.24,143.18,0.8453449]
[1723808625999,6.983,143.21,143.18,0.8453449]
[1723808626310,6.9823,143.22,143.18,7.8295449]
[1723808626897,6.9823,143.22,143.18,27.8295449]
[1723808627228,6.9823,143.22,143.18,0.8453449]
[1723808631129,6.9827,143.21,143.18,0.8453449]
[1723808633412,6.9823,143.22,143.18,7.8294449]
[1723808634831,6.9821,143.23,143.19,26.9837]
[1723808635807,6.9821,143.23,143.19,6.9837]
[1723808636817,26.9813,143.24,143.2,6.9831]
[1723808637424,26.9813,143.24,143.19,23.2413]
[1723808638053,6.9818,143.23,143.19,23.2413]
[1723808638723,6.9818,143.23,143.19,16.2578]
[1723808639625,6.9823,143.22,143.19,16.2578]
[1723808639808,6.9823,143.22,143.18,7.8293449]
[1723808640121,20.0,143.24,143.19,17.4587]
[1723808640330,20.0,143.26,143.2,20.0]
[1723808640526,6.9817,143.23,143.2,20.0]
[1723808640701,20.0,143.26,143.2,20.0]
[1723808641033,20.0,143.26,143.21,6.9827]
[1723808641034,6.9811,143.25,143.21,6.9827]
[1723808641341,6.9814,143.24,143.2,26.9831]
[1723808643422,6.9814,143.24,143.2,6.9831]
[1723808643631,6.9818,143.23,143.19,24.4422]
[1723808644029,6.9822,143.22,143.18,7.8293449]
[1723808645757,10.47,143.25,143.18,0.8453449]
[1723808645758,10.47,143.21,143.18,0.8453449]
[1723808645952,17.4537,143.19,143.18,0.8453449]
[1723808646153,37.4537,143.19,143.18,0.8453449]
[1723808647328,82.95566,143.19,143.18,0.8453449]
[1723808648259,37.57919,143.19,143.18,0.8453449]
[1723808648424,37.4537,143.19,143.18,0.8453449]
[1723808648938,26.9837,143.19,143.18,0.8453449]
[1723808656866,37.4537,143.19,143.18,0.8453449]
[1723808657371,37.57919,143.19,143.18,0.8453449]
[1723808657877,82.70468,143.19,143.18,0.8453449]
[1723808658168,37.4537,143.19,143.18,0.8453449]
[1723808662144,37.70468,143.19,143.18,0.8453449]
[1723808662371,37.83017,143.19,143.18,0.8453449]
[1723808662591,37.4537,143.19,143.18,0.8453449]
[1723808664163,26.9837,143.19,143.18,0.8453449]
[1723808665359,37.4537,143.19,143.18,0.8453449]
[1723808666479,26.9837,143.19,143.18,0.8453449]
[1723808669077,37.4537,143.19,143.18,0.8453449]
[1723808678780,26.9837,143.19,143.18,0.8453449]
[1723808679965,27.10919,143.19,143.18,0.8453449]
[1723808682200,72.48566,143.19,143.18,0.8453449]
[1723808688933,72.48566,143.19,143.12,16.2209]
[1723808688934,6.9866,143.13,143.12,16.2209]
[1723808689303,10.47,143.15,143.06,30.47]
[1723808689304,10.47,143.15,143.07,15.6378]
[1723808689627,6.9879,143.11,143.07,15.6378]
[1723808689999,6.9879,143.11,143.07,22.6273]
[1723808692214,10.47,143.13,143.08,6.989]
[1723808692215,6.9874,143.12,143.08,6.989]
[1723808694242,6.9874,143.12,143.08,26.989]
[1723808694405,6.9874,143.12,143.08,6.989]
[1723808694943,6.9874,143.12,143.08,26.989]
[1723808695101,6.9868,143.13,143.08,26.989]
[1723808695435,26.9863,143.14,143.1,20.0]
[1723808695601,26.9863,143.14,143.09,6.9884]
[1723808695935,6.9867,143.13,143.09,6.9884]
[1723808697234,6.9871,143.12,143.08,24.4611]
[1723808700017,24.73866816,143.19,143.12,35.6386]
[1723808700214,10.47,143.21,143.14,20.0]
[1723808700423,17.4563,143.22,143.15,1.39696529]
[1723808700638,6.9845,143.18,143.13,6.9864]
[1723808701005,6.9848,143.17,143.12,60.0929]
[1723808701236,6.9852,143.16,143.12,40.0929]
[1723808701439,10.47,143.17,143.12,15.6386]
[1723808702258,6.9862,143.14,143.12,15.6386]
[1723808702564,20.0,143.16,143.12,15.6386]
[1723808702565,6.9858,143.15,143.12,15.6386]
[1723808702719,26.9852,143.16,143.12,15.6386]
[1723808702915,6.9852,143.16,143.12,15.6386]
[1723808703114,6.9848,143.17,143.12,22.6254]
[1723808703535,6.9855,143.16,143.12,15.6386]
[1723808703935,6.9848,143.17,143.14,20.0]
[1723808704762,6.9843,143.18,143.14,26.9861]
[1723808705558,6.9838,143.19,143.14,26.9861]
[1723808706055,6.9838,143.19,143.14,6.9861]
[1723808706251,6.9838,143.19,143.14,26.9861]
[1723808707549,6.9842,143.18,143.14,6.9861]
[1723808707745,6.9842,143.18,143.14,26.9861]
[1723808708158,6.9842,143.18,143.14,6.9861]
[1723808708835,6.9842,143.18,143.14,26.9861]
[1723808709236,6.9842,143.18,143.14,6.9861]
[1723808710727,6.9842,143.18,143.13,24.4524]
[1723808710931,6.9847,143.17,143.13,24.4524]
[1723808713531,6.9842,143.18,143.14,6.9861]
[1723808713970,6.9842,143.18,143.13,24.4525]
[1723808714168,0.12549,143.2,143.12,15.6386]
[1723808714330,65.50196,143.2,143.12,22.6256]
[1723808715151,6.9853,143.16,143.12,22.6256]
[1723808717171,6.9848,143.17,143.12,22.6256]
[1723808717484,6.9848,143.17,143.12,15.6386]
[1723808717485,10.47,143.17,143.12,15.6386]
[1723808717791,10.47,143.15,143.11,6.1709]
[1723808717994,10.47,143.15,143.1,17.4693]
[1723808717995,6.9861,143.14,143.1,17.4693]
[1723808718171,10.47,143.15,143.08,16.1986]
[1723808718497,6.9872,143.12,143.08,23.1876]
[1723808720559,10.47,143.15,143.09,6.9884]
[1723808720783,6.9865,143.14,143.09,6.9884]
[1723808721568,6.9867,143.13,143.09,6.9884]
[1723808722253,10.47,143.15,143.09,6.9884]
[1723808722453,20.37647,143.16,143.09,6.9884]
[1723808722454,20.12549,143.16,143.09,6.9884]
[1723808722670,20.0,143.16,143.09,6.9884]
[1723808722896,6.9867,143.13,143.08,23.1875]
[1723808723400,10.72098,143.15,143.08,16.1986]
[1723808723401,6.9871,143.12,143.08,16.1986]
[1723808723996,6.9877,143.11,143.08,16.1986]
[1723808724166,6.9872,143.12,143.08,16.1986]
[1723808726266,10.72098,143.15,143.08,16.1986]
[1723808726267,10.47,143.13,143.08,16.1986]
[1723808726517,6.9886,143.09,143.08,16.1986]
[1723808727327,6.9882,143.1,143.08,16.1986]
[1723808728392,10.47,143.09,143.04,0.8453449]
[1723808728690,75.84647,143.09,143.04,0.8453449]
[1723808728902,6.9904,143.06,143.04,0.8453449]
[1723808729590,6.9896,143.07,143.04,0.8453449]
[1723808730333,6.9901,143.06,143.04,0.8453449]
[1723808731417,6.9905,143.05,143.04,0.8453449]
[1723808732026,6.9902,143.06,143.04,0.8453449]
[1723808732240,6.9905,143.05,143.04,0.8453449]
[1723808732536,6.9901,143.06,143.04,0.8453449]
[1723808732896,6.9896,143.07,143.04,0.8453449]
[1723808736030,6.9892,143.08,143.05,15.6549]
[1723808736235,20.0,143.09,143.05,15.6549]
[1723808736236,6.9897,143.07,143.05,15.6549]
[1723808736531,30.47,143.09,143.05,15.6549]
[1723808736709,6.9899,143.07,143.05,15.6549]
[1723808740027,6.9899,143.07,143.04,0.8453449]
[1723808741434,6.9892,143.08,143.04,0.8453449]
[1723808742509,6.9897,143.07,143.04,0.8453449]
[1723808742930,6.9892,143.08,143.04,0.8453449]
[1723808743138,6.9892,143.08,143.04,7.8362449]
[1723808743509,6.9886,143.09,143.05,6.9905]
[1723808746917,6.9882,143.1,143.06,6.99]
[1723808747131,6.9882,143.1,143.06,22.184]
[1723808747659,6.9877,143.11,143.06,22.184]
[1723808747839,10.47,143.13,143.06,22.184]
[1723808748044,6.9877,143.11,143.07,6.9894]
[1723808748967,6.9877,143.11,143.06,39.6586]
[1723808749329,6.9889,143.09,143.06,15.194]
[1723808752128,6.9882,143.1,143.06,15.194]
[1723808753067,6.9882,143.1,143.06,22.1839]
[1723808753659,6.9877,143.11,143.07,6.9895]
[1723808754038,6.9877,143.11,143.06,22.1839]
[1723808754456,6.9872,143.12,143.06,35.194]
[1723808754669,6.9872,143.12,143.08,6.989]
[1723808755047,6.9872,143.12,143.09,1.39752728]
[1723808755660,6.9877,143.11,143.07,24.463]
[1723808756286,6.9886,143.09,143.06,15.194]
[1723808757061,6.9892,143.08,143.04,0.8453449]
[1723808757277,6.9897,143.07,143.04,0.8453449]
[1723808757784,6.9892,143.08,143.04,0.8453449]
[1723808758303,6.9895,143.07,143.04,0.8453449]
[1723808759280,6.9891,143.08,143.04,0.8453449]
[1723808759581,6.9895,143.07,143.04,0.8453449]
[1723808760544,6.9901,143.06,143.04,0.8453449]
[1723808760778,10.47,143.07,143.04,0.8453449]
[1723808761945,6.9905,143.05,143.04,0.8453449]
[1723808762176,6.9901,143.06,143.04,0.8453449]
[1723808762375,6.9905,143.05,143.04,0.8453449]
[1723808766407,17.4605,143.05,143.04,0.8453449]
[1723808766719,17.58599,143.05,143.04,0.8453449]
[1723808767832,7.11599,143.05,143.04,0.8453449]
[1723808767984,6.9905,143.05,143.04,0.8453449]
[1723808772916,17.58599,143.05,143.04,0.8453449]
[1723808773120,37.83697,143.05,143.04,0.8453449]
[1723808773313,37.71148,143.05,143.04,0.8453449]
[1723808773829,37.83697,143.05,143.04,0.8453449]
[1723808774412,27.36697,143.05,143.04,0.8453449]
[1723808777457,37.83697,143.05,143.04,0.8453449]
[1723808777750,37.96246,143.05,143.04,0.8453449]
[1723808780523,82.96246,143.05,143.04,0.8453449]
[1723808780733,92.69089826,143.05,143.04,4.49e-05]
[1723808781151,99.96301768,143.05,143.04,4.49e-05]
[1723808782459,17.58799,143.01,143.0,0.03003]
[1723808782669,82.83897,143.01,143.0,0.03003]
[1723808782958,82.96446,143.01,143.0,0.03003]
[1723808788668,93.43446,143.01,143.0,0.03003]
[1723808788873,124.84446,143.01,143.0,0.03003]
[1723808789058,84.17917422,143.01,143.0,0.03003]
[1723808790266,28.45819422,143.01,143.0,0.03003]
[1723808790567,38.92819422,143.01,143.0,0.03003]
[1723808791478,35.86195714,143.01,143.0,0.03003]
[1723808791684,73.70917422,143.01,143.0,0.03003]
[1723808791846,72.24348,143.01,143.0,0.03003]
[1723808792192,6.9925,143.01,143.0,0.03003]
[1723808793287,26.9925,143.01,143.0,0.03003]
[1723808797092,37.58799,143.01,143.0,0.03003]
[1723808797301,37.83897,143.01,143.0,0.03003]
[1723808797897,37.71348,143.01,143.0,0.03003]
[1723808798090,37.4625,143.01,143.0,0.03003]
[1723808798297,37.58799,143.01,143.0,0.03003]
[1723808798593,37.71348,143.01,143.0,0.03003]
[1723808798786,37.58799,143.01,143.0,0.03003]
[1723808800180,26.9925,143.01,143.0,0.03003]
[1723808802181,6.9925,143.01,143.0,0.03003]
[1723808803774,7.11799,143.01,143.0,0.03003]
[1723808804377,6.9925,143.01,143.0,0.03003]
[1723808805486,37.67453826,143.06,143.0,0.03003]
[1723808805684,37.67453826,143.06,143.0,20.03003]
[1723808805685,6.9916,143.03,143.0,20.03003]
[1723808806014,6.9916,143.03,143.0,35.75673]
[1723808806915,6.9916,143.03,143.0,15.75673]
[1723808807537,6.9922,143.02,143.0,15.75673]
[1723808807718,6.9925,143.01,143.0,15.75673]
[1723808807910,6.9925,143.01,143.0,0.03003]
[1723808808255,7.36897,143.01,143.0,0.03003]
[1723808808531,7.24348,143.01,143.0,0.03003]
[1723808808741,7.11799,143.01,143.0,0.03003]
[1723808809231,17.58799,143.01,143.0,0.03003]
[1723808809437,17.96446,143.01,143.0,0.03003]
[1723808809595,62.96446,143.01,143.0,0.03003]
[1723808813243,17.58799,143.01,143.0,0.03003]
[1723808813542,17.4625,143.01,143.0,0.03003]
[1723808813704,6.9925,143.01,143.0,0.03003]
[1723808815245,6.9918,143.03,143.0,0.03003]
[1723808815421,6.9918,143.03,143.0,21.99943]
[1723808815610,6.992,143.02,143.0,21.99943]
[1723808816244,6.9917,143.03,143.0,21.99943]
[1723808816917,6.992,143.02,143.0,21.99943]
[1723808820234,17.4772,143.05,143.0,21.99943]
[1723808820235,6.9915,143.03,143.0,21.99943]
[1723808820939,10.47,143.06,143.0,21.99943]
[1723808820940,6.9912,143.04,143.0,28.99223]
[1723808821148,6.9907,143.05,143.01,6.9924]
[1723808821843,10.47,143.08,143.0,39.48133]
[1723808822022,6.9904,143.06,143.01,6.9923]
[1723808822440,6.9905,143.05,143.01,6.9923]
[1723808822661,10.47,143.06,143.0,39.48133]
[1723808822958,6.9908,143.05,143.0,46.47383]
[1723808823165,6.9908,143.05,143.01,26.9925]
[1723808825469,6.9902,143.06,143.02,6.992]
[1723808825998,6.9902,143.06,143.01,26.9924]
[1723808828132,17.4769,143.05,143.0,0.03003]
[1723808828334,6.9921,143.02,143.0,0.03003]
[1723808828560,20.0,143.05,143.0,16.07873]
[1723808829077,6.9912,143.04,143.0,16.07873]
[1723808829958,6.9915,143.03,143.0,16.07873]
[1723808830180,20.0,143.05,143.0,29.23663]
[1723808830486,20.0,143.05,143.0,22.24403]
[1723808830666,6.9911,143.04,143.0,22.24403]
[1723808830855,26.9907,143.05,143.01,20.0]
[1723808831058,6.9907,143.05,143.01,20.0]
[1723808831255,6.9907,143.05,143.01,26.9923]
[1723808832295,10.47,143.08,143.01,44.4725]
[1723808832503,20.0,143.07,143.01,44.4725]
[1723808833170,6.9906,143.05,143.01,44.4725]
[1723808834662,6.9906,143.05,143.01,17.4802]
[1723808835162,6.991,143.04,143.01,17.4802]
[1723808835982,20.0,143.07,143.01,17.4802]
[1723808836494,6.9912,143.04,143.0,49.23683]
[1723808838104,20.0,143.07,143.0,49.23683]
[1723808838105,6.9907,143.05,143.0,49.23683]
[1723808838904,6.9894,143.08,143.05,36.5955]
[1723808839274,6.9894,143.08,143.05,16.5955]
[1723808841406,6.9899,143.07,143.05,16.5955]
[1723808842418,6.9891,143.08,143.05,16.5955]
[1723808843180,6.99,143.06,143.05,16.5955]
[1723808844686,6.9899,143.07,143.05,16.5955]
[1723808846618,6.9891,143.08,143.05,16.5955]
[1723808846823,6.9891,143.08,143.05,23.0075]
[1723808847029,17.4587,143.09,143.05,29.998]
[1723808853023,6.9887,143.09,143.05,49.998]
[1723808856116,6.9882,143.1,143.07,20.0]
[1723808857257,6.9886,143.09,143.05,29.9979]
[1723808857468,6.9891,143.08,143.05,23.0075]
[1723808859648,6.9891,143.08,143.05,43.0075]
[1723808859856,17.4587,143.09,143.05,43.0075]
[1723808860555,6.9887,143.09,143.05,43.0075]
[1723808862552,6.9887,143.09,143.05,49.9979]
[1723808865053,6.9887,143.09,143.05,29.9979]
[1723808865629,10.47,143.11,143.05,29.9979]
[1723808865630,10.47,143.11,143.06,6.9898]
[1723808865944,6.9886,143.09,143.05,29.998]
[1723808870434,6.9886,143.09,143.06,20.0]
[1723808871740,6.9886,143.09,143.05,49.998]
[1723808871952,6.9891,143.08,143.05,23.0075]
[1723808873146,6.9886,143.09,143.05,49.9979]
[1723808873767,6.9882,143.1,143.05,49.9979]
[1723808874237,10.47,143.11,143.05,49.9979]
[1723808874238,6.9888,143.09,143.05,29.9979]
[1723808877050,6.9882,143.1,143.05,29.9979]
[1723808877267,6.9882,143.1,143.06,6.99]
[1723808877742,6.9882,143.1,143.06,26.99]
[1723808877945,6.9882,143.1,143.06,6.99]
[1723808879657,6.9882,143.1,143.06,26.99]
[1723808879871,6.9882,143.1,143.06,6.99]
[1723808880245,10.47,143.11,143.07,6.9895]
[1723808880246,17.4577,143.11,143.07,6.9895]
[1723808881050,6.9872,143.12,143.08,6.9889]
[1723808881663,6.9872,143.12,143.07,6.9895]
[1723808881851,6.9872,143.12,143.07,26.9895]
[1723808882059,17.4577,143.11,143.07,6.9895]
[1723808882805,6.9881,143.1,143.06,24.59029]
[1723808883084,31.36095634,143.14,143.05,23.0075]
[1723808883085,10.47,143.09,143.05,23.0075]
[1723808884251,17.4587,143.09,143.05,23.0075]
[1723808884677,6.9882,143.1,143.05,49.9978]
[1723808884997,6.9887,143.09,143.05,23.0075]
[1723808885152,6.9887,143.09,143.05,43.0075]
[1723808885477,6.9887,143.09,143.05,49.998]
[1723808885661,6.9887,143.09,143.05,29.998]
[1723808885976,6.9887,143.09,143.05,23.0075]
[1723808886366,6.9887,143.09,143.05,43.0075]
[1723808887081,10.47,143.08,143.05,23.0075]
[1723808887304,6.99,143.06,143.05,16.5955]
[1723808887583,6.9897,143.07,143.05,16.5955]
[1723808889263,17.4592,143.08,143.05,16.5955]
[1723808890584,6.9892,143.08,143.05,16.5955]
[1723808894665,10.47,143.09,143.06,20.0]
[1723808894666,17.4587,143.09,143.06,20.0]
[1723808894876,6.9882,143.1,143.06,20.0]
[1723808895509,6.9887,143.09,143.06,20.0]
[1723808896797,6.9886,143.09,143.06,20.0]
[1723808897170,6.9886,143.09,143.05,23.5859]
[1723808897616,6.9892,143.08,143.05,16.5955]
[1723808902819,6.62208123,143.14,143.06,43.7381]
[1723808902990,16.61225054,143.15,143.06,43.7381]
[1723808902991,10.47,143.12,143.06,43.7381]
[1723808903386,6.9879,143.11,143.07,6.9895]
[1723808903582,6.9879,143.11,143.06,50.728]
[1723808904318,10.47,143.12,143.06,30.728]
[1723808904319,6.9883,143.1,143.06,30.728]
[1723808904522,6.9883,143.1,143.06,23.7381]
[1723808904523,17.4583,143.1,143.06,23.7381]
[1723808905520,6.9887,143.09,143.06,23.7381]
[1723808906019,6.9887,143.09,143.06,6.2636]
[1723808907924,6.9891,143.08,143.06,6.2636]
[1723808908286,10.47,143.11,143.06,6.2636]
[1723808908287,6.9887,143.09,143.06,6.2636]
[1723808911825,10.47,143.07,143.05,16.5955]
[1723808912759,17.4596,143.07,143.05,16.5955]
[1723808912937,10.47,143.07,143.02,6.2799]
[1723808913222,17.4613,143.04,143.01,16.0891]
[1723808915707,6.9906,143.05,143.01,23.0816]
[1723808919035,17.46,143.06,143.02,26.9919]
[1723808919624,6.9892,143.08,143.03,6.9915]
[1723808919935,6.9892,143.08,143.03,7.11699]
[1723808922027,17.4592,143.08,143.03,7.11699]
[1723808923714,6.9887,143.09,143.04,82.4771]
[1723808924323,6.9887,143.09,143.05,6.9904]
[1723808924539,6.9887,143.09,143.04,69.4679]
[1723808924733,6.9887,143.09,143.04,24.4679]
[1723808927517,6.6032,143.13,143.04,24.4679]
[1723808927518,6.9891,143.08,143.04,24.4679]
[1723808930040,6.9899,143.07,143.02,13.0918]
[1723808930211,17.59359,143.12,143.02,13.0918]
[1723808930212,6.99,143.06,143.02,13.0918]
[1723808930931,6.9897,143.07,143.02,13.0918]
[1723808931222,17.4597,143.07,143.02,13.0918]
[1723808931643,6.9901,143.06,143.02,13.0918]
[1723808931950,10.47,143.07,143.01,16.0891]
[1723808932118,10.47,143.07,143.0,0.03003]
[1723808932119,6.9925,143.01,143.0,0.03003]
[1723808932449,37.72638,143.06,143.0,0.03003]
[1723808932759,6.9913,143.04,143.0,0.03003]
[1723808932917,6.9916,143.03,143.0,0.03003]
[1723808933253,37.4754,143.06,143.0,0.03003]
[1723808933254,6.992,143.02,143.0,0.03003]
[1723808933472,17.462,143.02,143.0,0.03003]
[1723808933918,6.9925,143.01,143.0,0.03003]
[1723808936448,10.47,143.02,143.0,0.03003]
[1723808936658,17.4623,143.02,143.0,0.03003]
[1723808937853,6.9925,143.01,143.0,0.03003]
[1723808948125,68.8725,143.01,143.0,0.03003]
[1723808948466,26.9925,143.01,143.0,0.03003]
[1723808950158,37.58799,143.01,143.0,0.03003]
[1723808950470,69.12348,143.01,143.0,0.03003]
[1723808951634,6.9944,142.97,142.94,16.5209]
[1723808951833,17.4644,142.97,142.94,16.5209]
[1723808952625,10.47,142.97,142.94,16.5209]
[1723808952830,76.70701701,143.01,142.92,6.4232]
[1723808952831,10.47,142.95,142.92,6.4232]
[1723808953067,10.47,142.95,142.92,5.9232]
[1723808954133,17.4654,142.95,142.92,5.9232]
[1723808955275,10.47,142.93,142.9,34.9837449]
[1723808955431,10.47,142.93,142.9,17.4894449]
[1723808955432,17.4668,142.93,142.9,17.4894449]
[1723808955634,10.47,142.91,142.9,0.8453449]
[1723808956351,17.4674,142.91,142.9,0.8453449]
[1723808956867,10.47,142.91,142.9,0.8453449]
[1723808957063,6.9965,142.93,142.9,0.8453449]
[1723808957470,10.47,142.92,142.9,0.8453449]
[1723808957659,10.59549,142.92,142.9,0.8453449]
[1723808958138,6.9974,142.91,142.9,0.8453449]
[1723808962559,10.47,142.93,142.9,0.8453449]
[1723808963746,6.9971,142.92,142.9,0.8453449]
[1723808964670,17.4665,142.93,142.9,0.8453449]
[1723808965361,6.9969,142.92,142.9,0.8453449]
[1723808965978,10.47,142.93,142.9,0.8453449]
[1723808965979,17.4668,142.93,142.9,0.8453449]
[1723808968464,10.47,142.91,142.9,0.8453449]
[1723808969144,17.4674,142.91,142.9,0.8453449]
[1723808971059,10.47,142.91,142.9,0.8453449]
[1723808971649,6.9969,142.92,142.9,0.8453449]
[1723808971952,17.4669,142.92,142.9,0.8453449]
[1723808973796,6.9974,142.91,142.9,0.8453449]
[1723808975397,6.997,142.92,142.9,0.8453449]
[1723808978366,6.9974,142.91,142.9,0.8453449]
[1723808978567,17.4674,142.91,142.9,0.8453449]
[1723808986915,6.9974,142.91,142.9,0.8453449]
[1723808988497,17.4674,142.91,142.9,0.8453449]
[1723808990616,17.4674,142.91,142.84,6.5061]
[1723808990617,6.9989,142.88,142.84,13.5065]
[1723808990927,10.47,142.87,142.84,13.5065]
[1723808992298,17.4693,142.87,142.84,6.5061]
[1723808993307,17.4693,142.87,142.83,24.5037]
[1723808994527,6.9999,142.86,142.83,17.5027]
[1723808995434,17.4695,142.87,142.83,17.5027]
[1723808995635,17.4695,142.87,142.83,24.504]
[1723808997327,6.9998,142.86,142.83,17.5027]
[1723809000709,10.47,142.85,142.82,7.0017]
[1723809001013,10.47,142.85,142.81,7.0021]
[1723809001213,23.5716,142.9,142.8,17.5059]
[1723809001214,0.12549,142.87,142.8,17.5059]
[1723809001406,7.0009,142.84,142.8,24.5086]
[1723809001926,7.0009,142.84,142.8,17.5059]
[1723809002436,7.0009,142.84,142.8,44.5086]
[1723809003151,32.6073,142.88,142.81,7.0022]
[1723809003152,7.0,142.86,142.81,7.0022]
[1723809003355,17.4976,142.88,142.81,7.0022]
[1723809003522,6.9999,142.86,142.81,7.0022]
[1723809003716,6.9999,142.86,142.8,37.5059]
[1723809003717,6.9999,142.86,142.82,7.0017]
[1723809003917,6.9999,142.86,142.8,37.5059]
[1723809003918,6.9999,142.86,142.81,7.0021]
[1723809004362,6.9999,142.86,142.82,27.0016]
[1723809004562,6.9985,142.89,142.83,35.9243]
[1723809005055,6.9985,142.89,142.84,7.0004]
[1723809005622,6.9985,142.89,142.85,7.0002]
[1723809006747,17.4685,142.89,142.85,7.0002]
[1723809008334,6.9989,142.88,142.84,17.5017]
[1723809008826,10.47,142.87,142.84,17.5017]
[1723809009772,33.9083,142.92,142.85,20.0]
[1723809010075,6.9982,142.9,142.85,27.0002]
[1723809010484,6.9983,142.89,142.85,27.0002]
[1723809014079,6.9983,142.89,142.85,7.0002]
[1723809014379,17.4683,142.89,142.85,7.0002]
[1723809015958,17.4693,142.87,142.84,17.5017]
[1723809017354,6.999,142.88,142.84,24.5024]
[1723809018284,6.999,142.88,142.85,1.39984327]
[1723809018486,6.999,142.88,142.84,24.5024]
[1723809019586,17.4685,142.89,142.84,24.5024]